Cogmind - Beta 16.1 @@@ ROGUE MODE // 2026.04.26 @ 23:24:20 Player: The Overplayer Result: Destroyed by P-80 Master with Gamma Rifle Performance ------------- Evolutions (8) 4000 Regions Visited (18) 3600 Robots Destroyed (238) 1190 Value Destroyed (11052) 11052 Prototype IDs (44) 880 Alien Tech Used (0) 0 Bonus (4169) 4169 TOTAL SCORE: 24891 Bonus ------- Triggered High Security 500 High Alert Combat Kills 2352 Follower Combat Kills 493 Entered DSFs 500 Aligned with FarCom 300 Acquired ECA 300 Friendly Fire -276 Cogmind --------- Core Integrity 0/1450 Matter 159/300 Energy 95/100 System Corruption 57% Temperature Cool (0) Movement Core (50) Location -2/Research Parts ------- > --- POWER (3) -------- (None) > --- PROPULSION (6) --- Advanced Heavy Siege Treads Enhanced Multireflex Exoskeleton Combat Linear Gravjet > --- UTILITY (10) ----- Quantum Shading Machine Improved Hacking Suite > --- WEAPON (4) ------- (None) > --- INVENTORY (5) ---- Myomer Leg Gamma Rifle Heavy Laser Heavy Laser Enhanced Hardcell Cannon Peak State ------------ > --- POWER ------------ Quantum Reactor Light Quantum Reactor Light Quantum Reactor > --- PROPULSION ------- Heavy Shield Leg Heavy Shield Leg Heavy Shield Leg > --- UTILITY ---------- Power Amplifier Advanced Cryofiber Web Advanced Heat Sink Advanced Heat Sink Huge Storage Unit Experimental Energy Well Advanced Terrain Scan Processor Advanced Targeting Computer Core Analyzer Advanced Force Field > --- WEAPON ----------- Advanced Variable Charge Gun Advanced Variable Charge Gun Cooled Particle Cannon Cooled Particle Cannon > --- INVENTORY -------- Light Particle Reactor Light Quantum Reactor Reinforced Quantum Reactor Centrium Leg Experimental Sensor Array Advanced Terrain Scanner Encrypted Comm Array Advanced Weapon Cycler Advanced Weapon Cycler Improved Core Shielding Damper Plating Advanced System Restoration Module Advanced Recalibrator Gamma Rifle Quantum Rifle Cooled Particle Cannon Cooled Particle Cannon Cooled Particle Cannon Guided Plasma Cannon Nova Cannon Micro-nuke Launcher Plasma Lance [Rating: 175] Favorites ----------- Power Heavy Deuterium Engine Engine Heavy Deuterium Engine Power Core Neutrino Core Reactor Light Quantum Reactor Propulsion Light Treads Treads Light Treads Leg Heavy Shield Leg Hover Unit Combat Linear Gravjet Utility Advanced Heat Sink Device Advanced Heat Sink Storage High-capacity Storage Unit Processor Core Analyzer Hackware Improved Hacking Suite Protection Improved Heavy Armor Plating Weapon Cooled Particle Cannon Energy Gun Advanced Variable Charge Gun Energy Cannon Cooled Particle Cannon Ballistic Gun Light Assault Rifle Ballistic Cannon Enhanced Hardcell Cannon Launcher Missile Launcher Special Weapon Mining Laser Piercing Weapon Plasma Lance Build | -11 -10 -10 -10 -9 -8 -7 -6 -6 -6 -6 -6 -5 -5 -4 -4 -4 -3 -2 ------- Run | Yrd Mat Min Exi Min Mat Fac Fac Was Fac Low Low Fac DSF Fac Upp Upp Res Res Slots Evolved 16 | . . . . . 4 2 2 . . . . 2 . 2 . . 2 2 Power 2 | . . . . . 1 . . . . . . . . . . . . 1 Propulsion 4 | . . . . . 1 . . . . . . 1 . 2 . . . . Utility 8 | . . . . . 2 1 2 . . . . 1 . . . . 1 1 Weapon 2 | . . . . . . 1 . . . . . . . . . . 1 . Parts Attached 200 | 7 9 5 1 3 38 23 5 3 3 . . 2 6 7 4 . 22 62 Power 34 | 1 1 3 . 1 9 2 . 1 . . . . 2 . . . 4 10 Engine 15 | 1 1 3 . 1 7 2 . . . . . . . . . . . . Core 4 | . . . . . 2 . . . . . . . 2 . . . . . Reactor 15 | . . . . . . . . 1 . . . . . . . . 4 10 Propulsion 49 | 2 2 . . 1 4 7 1 1 1 . . 1 2 1 . . 2 24 Treads 34 | 2 2 . . 1 3 7 1 1 1 . . 1 2 1 . . 2 10 Leg 14 | . . . . . 1 . . . . . . . . . . . . 13 Wheel . | . . . . . . . . . . . . . . . . . . . Hover 1 | . . . . . . . . . . . . . . . . . . 1 Flight . | . . . . . . . . . . . . . . . . . . . Utility 70 | 2 2 . . . 13 9 4 1 . . . 1 2 4 4 . 11 17 Device 38 | 1 . . . . 3 7 2 . . . . 1 2 2 3 . 5 12 Storage 9 | 1 1 . . . 4 . . . . . . . . 1 . . 2 . Processor 8 | . 1 . . . 2 . 1 . . . . . . 1 1 . 1 1 Hackware 2 | . . . . . . . . . . . . . . . . . 1 1 Protection 13 | . . . . . 4 2 1 1 . . . . . . . . 2 3 Artifact . | . . . . . . . . . . . . . . . . . . . Weapon 47 | 2 4 2 1 1 12 5 . . 2 . . . . 2 . . 5 11 Energy Gun 16 | 1 . . . . 4 1 . . . . . . . . . . 3 7 Energy Cannon 17 | . 2 1 1 1 3 4 . . 2 . . . . 1 . . 2 . Ballistic Gun 4 | 1 2 . . . 1 . . . . . . . . . . . . . Ballistic Cannon 4 | . . . . . 2 . . . . . . . . . . . . 2 Launcher 4 | . . . . . 2 . . . . . . . . 1 . . . 1 Special Weapon 1 | . . 1 . . . . . . . . . . . . . . . . Impact Weapon . | . . . . . . . . . . . . . . . . . . . Slashing Weapon . | . . . . . . . . . . . . . . . . . . . Piercing Weapon 1 | . . . . . . . . . . . . . . . . . . 1 Special Melee Weapon . | . . . . . . . . . . . . . . . . . . . Unidentified Prototypes 17 | . . . . . 3 2 1 . . . . . . 1 . . 4 6 Corrupted Parts 3 | . . . . . . 2 . . . . . . . . . . . 1 System Corruption 4 | . . . . . . 3 . . . . . . . . . . . 1 Parts Lost 65 | . 2 1 . . 17 . 1 . . . . . 1 1 . . 3 39 Power 11 | . . . . . 3 . . . . . . . 1 . . . 1 6 Propulsion 18 | . . . . . 6 . . . . . . . . . . . . 12 Utility 21 | . 1 . . . 5 . . . . . . . . 1 . . 2 12 Weapon 15 | . 1 1 . . 3 . 1 . . . . . . . . . . 9 Highest Loss Streak 19 | . 1 1 . . 12 . 1 . . . . . 1 1 . . 1 19 To Critical Strikes 2 | . . . . . . . . . . . . . . . . . . 2 Average Backups 17 | . 11 14 15 15 16 19 19 18 17 18 18 18 17 21 20 21 21 16 Power . | . . 1 2 1 . . . . 1 1 1 1 . . . . . 1 Propulsion 1 | . . 2 2 2 . . 1 1 1 1 1 1 1 . . . 2 1 Utility 8 | . 4 3 4 5 7 7 8 10 11 12 12 12 12 16 13 13 9 5 Weapon 6 | . 5 7 7 6 8 9 7 5 4 4 4 4 4 5 6 7 8 7 Tool/Special . | . . . . . . . . . . . . . . . . . . . Unused Backups 56 | . 6 . . 2 8 11 7 4 2 1 . . 1 3 1 . 5 5 Power 4 | . 1 . . . 1 . . 1 . . . . . . . . . 1 Propulsion 2 | . . . . . . . . . . . . . . . . . . 2 Utility 28 | . 5 . . . 4 5 3 . . 1 . . 1 3 1 . 4 1 Weapon 21 | . . . . 2 3 6 3 3 2 . . . . . . . 1 1 Tool/Special 1 | . . . . . . . 1 . . . . . . . . . . . Average Slot Usage (%) 84 | . 97 99 100 100 91 98 95 77 73 73 73 64 70 67 77 78 79 69 Engine 7 | . 14 14 14 14 12 10 13 8 6 6 6 5 7 . . . . . Core 2 | . . . . . 2 4 . . . . . . 1 10 10 10 3 . Reactor 2 | . . . . . . . . 3 6 6 6 5 1 . . . 4 9 Treads 17 | . 28 28 28 28 21 22 20 15 13 13 13 11 11 15 15 15 14 1 Leg 1 | . . . . . 1 . . . . . . . . . . . . 10 Device 8 | . 1 . . . 7 7 6 6 6 6 6 5 11 9 15 15 15 17 Storage 8 | . 14 14 14 14 9 7 6 6 6 6 6 5 5 5 5 5 8 5 Processor 9 | . 11 14 14 14 14 7 12 8 6 6 6 5 5 5 4 5 6 8 Protection 5 | . . . . . 4 13 15 6 6 6 6 5 5 5 9 10 5 . Energy Cannon 16 | . 19 14 14 14 12 21 19 20 20 20 20 17 17 14 15 15 18 10 Ballistic Gun 2 | . 5 12 14 14 2 . . . . . . . . . . . . . Peak Build Rating 175 | 7 10 10 17 19 32 52 68 87 88 88 88 100 106 130 125 122 144 175 Average Rating 75 | 4 9 9 13 16 26 45 63 79 87 88 88 93 100 123 123 122 138 137 On Entrance 67 | . 7 10 10 17 19 27 52 68 87 88 88 88 100 106 130 122 122 140 Avg Prop Armor Cover (%) 16 | . . . . . 4 4 . . . . . . . . . . 5 25 Naked Turns 44 | . . . . . . . . . . . . . . . . . . 44 Heaviest Build 196 | 15 29 30 36 36 71 98 100 134 137 137 137 137 138 196 157 155 176 180 Greatest Support 225 | 40 40 40 40 43 63 76 84 98 100 100 100 140 150 225 225 225 225 225 Greatest Overweight (x) 19 | . . . . . 19 4 1 1 1 1 1 1 . . . . 1 15 Average Overweight (x) . | . . . . . . 1 1 . 1 1 1 . . . . . . . Largest Inventory Capacity 25 | 8 15 15 15 15 20 20 20 20 20 20 20 20 20 25 25 25 25 25 Average Capacity 19 | 6 14 15 15 15 19 20 20 20 20 20 20 20 20 23 25 25 25 19 Most Carried 25 | 3 15 15 15 15 20 20 20 20 20 20 20 20 20 25 25 25 25 25 Average Carried 18 | 1 11 14 15 14 16 19 19 19 19 20 20 19 18 22 24 25 24 18 Final Capacity 25 | 8 15 15 15 15 20 20 20 20 20 20 20 20 20 25 25 25 25 5 Final Carried 25 | 3 14 15 15 15 18 20 19 20 20 20 20 18 20 24 25 25 24 5 Class Distribution -------------------- 34% | Tank 18% | Mutant 10% | Scavenger-Tank 10% | Scavenger-Mutant 10% | Scavenger-Skirmisher 8% | Gunner 7% | Skirmisher Dominant Class ---------------- Mutant | -10/Materials Scavenger-Mutant | -10/Mines Scavenger-Mutant | -10/Exiles Mutant | -9/Mines Scavenger-Mutant | -8/Materials Scavenger-Tank | -7/Factory Gunner | -6/Factory Tank | -6/Waste Tank | -6/Factory Tank | -6/Lower Caves Tank | -6/Lower Caves Scavenger-Tank | -5/Factory Scavenger-Tank | -5/DSF Tank | -4/Factory Tank | -4/Upper Caves Tank | -4/Upper Caves Tank | -3/Research Skirmisher | -2/Research Resources | -11 -10 -10 -10 -9 -8 -7 -6 -6 -6 -6 -6 -5 -5 -4 -4 -4 -3 -2 ----------- Run | Yrd Mat Min Exi Min Mat Fac Fac Was Fac Low Low Fac DSF Fac Upp Upp Res Res Matter Collected 4535 | 201 404 175 . 66 784 306 181 50 . 40 . 10 25 109 238 . 526 1420 Remotely . | . . . . . . . . . . . . . . . . . . . Salvage Created 12818 | 89 609 443 . 70 1137 593 387 234 112 24 . 20 298 594 660 . 1942 5606 Parts 551 | 8 34 24 . 3 49 28 17 . 6 2 . 2 12 31 11 . 108 216 Haulers Intercepted 11 | . 2 . . . 3 1 . . . . . . . 1 . . 2 2 Recyclers Shooed 6 | . . . . . 1 . . . . . . . . . . . 3 2 Parts Field Recycled . | . . . . . . . . . . . . . . . . . . . Retrieved Matter . | . . . . . . . . . . . . . . . . . . . Parts Self-Destructed 17 | . . . . . . . . . . 8 . . . . 9 . . . Prevented . | . . . . . . . . . . . . . . . . . . . Parts Restored 5 | . . . . . . . 1 . . . . . . . . . 2 2 Broken 5 | . . . . . . . 1 . . . . . . . . . 2 2 Kills | -11 -10 -10 -10 -9 -8 -7 -6 -6 -6 -6 -6 -5 -5 -4 -4 -4 -3 -2 ------- Run | Yrd Mat Min Exi Min Mat Fac Fac Was Fac Low Low Fac DSF Fac Upp Upp Res Res Combat Hostiles Destroyed 168 | . 8 8 . 2 20 7 4 1 2 1 . . 6 8 8 . 24 69 Melee 3 | . . . . . . . . . . . . . . . . . . 3 Guns 27 | . 8 2 . . 1 . . . . . . . . . . . . 16 Cannons 112 | . . 6 . 2 13 7 4 1 2 1 . . 5 4 8 . 23 36 AOE 18 | . . . . . 3 . . . . . . . . 4 . . . 11 Classes Destroyed 20 | 2 6 . . 1 6 1 . 1 . . . . 2 . . . . 1 Worker 12 | . 1 . . . 1 . . . . . . . . 1 . . 1 8 Builder 13 | . . . . . 1 . . . . . . . . 4 . . 1 7 Tunneler 1 | 1 . . . . . . . . . . . . . . . . . . Hauler 11 | . 2 . . . 3 1 . . . . . . . 1 . . 2 2 Recycler 13 | 1 2 1 . . 3 1 1 . . . . . . . . . 1 3 Mechanic 2 | . 1 . . . 1 . . . . . . . . . . . . . Operator 6 | . . . . . 1 1 . . . . . 1 . 1 . . 1 1 Watcher 10 | . 3 . . . 1 2 1 . . . . . . 2 . . . 1 Swarmer 30 | . 3 . . . 6 . . . . 1 . . 4 . 3 . 6 7 Grunt 55 | . 5 8 . 1 7 . . . . . . . . 6 1 . . 27 Brawler 6 | . . . . . 2 . . . . . . . . . . . . 4 Duelist 4 | . . . . . 1 . . . . . . . . . . . . 3 Protector 1 | . . . . . . . . . . . . . . . . . . 1 Sentry 10 | . . . . . 3 3 1 . 1 . . . . . 1 . 1 . Demolisher 1 | . . . . 1 . . . . . . . . . . . . . . Specialist 1 | . . . . . . . . . . . . . 1 . . . . . Hunter 14 | . . . . . 1 1 . . 1 . . . . . 2 . 2 7 Programmer 41 | . . . . . . 3 3 . . . . . . 2 1 . 14 18 Heavy 3 | . . . . . . . . . . . . . 1 . . . 1 1 Compactor 1 | . . . . . . . . 1 . . . . . . . . . . Packrat 3 | . . . . . . . . . . . . . . . 3 . . . Thug 1 | . . . . . . . . . . . . . 1 . . . . . Infiltrator 2 | . . . . . . . . . . . . . . . . . 1 1 Best Kill Streak 11 | 2 4 4 . 1 8 2 1 1 2 1 . 1 4 11 5 . 6 11 Combat Bots Only 8 | . 3 3 . 1 4 2 1 1 2 1 . . 4 4 5 . 5 8 Max Kills in Single Turn 8 | 1 1 1 . 1 8 1 1 1 1 1 . 1 2 3 1 . 2 2 Gunslinging . | . . . . . . . . . . . . . . . . . . . Exploded 3 | . . . . . 3 . . . . . . . . 2 . . . 2 Melee 1 | . . . . . . . . . . . . . . . . . . 1 Uniques/NPCs Destroyed . | . . . . . . . . . . . . . . . . . . . Combat | -11 -10 -10 -10 -9 -8 -7 -6 -6 -6 -6 -6 -5 -5 -4 -4 -4 -3 -2 -------- Run | Yrd Mat Min Exi Min Mat Fac Fac Was Fac Low Low Fac DSF Fac Upp Upp Res Res Hostile Shots Fired 1710 | . 69 53 . . 214 71 48 . . 5 . . 18 98 70 . 102 962 Missed 444 | . 13 8 . . 40 22 17 . . 2 . . 6 26 19 . 28 263 Deflected 59 | . . . . . . . . . . . . . . . . . . 59 Hits 1266 | . 56 45 . . 174 49 31 . . 3 . . 12 72 51 . 74 699 Melee 38 | . . . . . 19 . . . . . . . . . . . . 19 Projectile 1228 | . 56 45 . . 155 49 31 . . 3 . . 12 72 51 . 74 680 AOE 4 | . . . . 1 . 1 . . . . . . 1 . . . 1 . Critical Strikes 69 | . . 1 . . 15 . . . . . . . 1 2 . . 5 45 Actively Blocked 1 | . . . . . . . . . . . . . . . . . . 1 Part Disruptions 3 | . . . . . . . . . . . . . . . . . 1 2 Damage Taken 21934 | . 608 572 . 40 2897 517 298 83 24 85 . . 328 1022 951 . 1710 12799 Core 2248 | . 108 119 . . 369 20 49 . . . . . . 12 . . 115 1456 Absorbed by Shields 2767 | . . . . . . . . . . . . . . 440 . . 26 2301 Reduced by Siege Mode 752 | . . . . . . . . . . . . . . 36 71 . 98 547 Redirected to Shielding 152 | . . . . . . 37 27 . . . . . . . . . . 88 Ignored by Resistances 205 | . . . . . . . . . . . . . . 205 . . . . Regen/Repaired (Parts) 285 | . 135 . . . 138 . . 12 . . . . . . . . . . Core Remaining (%) 77 | 100 . . . 9 32 97 . . . . 94 . 100 . . 98 91 . Volleys Fired 583 | 7 76 42 . 8 92 20 14 2 3 2 . 1 10 27 25 . 64 190 Largest 4 | 1 2 2 . 1 2 3 3 3 3 3 . 3 3 3 3 . 4 4 Hottest 540 | 40 120 120 . 120 135 150 90 90 150 150 . 270 270 165 270 . 383 540 Shots Fired 1357 | 7 98 64 . 8 151 60 42 6 9 6 . 3 30 69 75 . 207 522 Gun 250 | 7 78 23 . . 8 3 . . . . . . . . . . . 131 Cannon 1078 | . 20 31 . 8 141 57 42 6 9 6 . 3 30 65 75 . 207 378 Launcher 19 | . . . . . 2 . . . . . . . . 4 . . . 13 Special 10 | . . 10 . . . . . . . . . . . . . . . . Kinetic 126 | . 76 23 . . 22 . . . . . . . . . . . . 5 Thermal 1199 | . 20 41 . 8 127 57 42 6 9 6 . 3 30 65 75 . 207 503 Explosive 19 | . . . . . 2 . . . . . . . . 4 . . . 13 Electromagnetic 13 | 7 2 . . . . 3 . . . . . . . . . . . 1 Robot Hit Streak 26 | 2 9 20 . 3 16 14 7 8 4 3 . 3 2 7 26 . 13 20 Robot Miss Streak 6 | 1 6 2 . . 3 2 4 . 1 1 . 1 4 2 2 . 5 4 Penetration Max . | . . . . . . . . . . . . . . . . . . . Secondary Targets 1 | . . . . . . . . . . . . . . . . . 1 . Max Gunslinging Chain 1 | . . . . . . . . . . . . . . . . . 1 . Shots Hit Robots 818 | 4 56 38 . 1 92 41 23 5 5 5 . 2 9 44 51 . 106 336 Core Hits 403 | 2 28 15 . 2 43 17 8 2 2 1 . 1 8 36 17 . 46 175 Critical Kills 7 | . . . . . 2 . . . . . . . 1 2 . . . 2 Critical Parts Destroyed . | . . . . . . . . . . . . . . . . . . . Critical Strikes 8 | . . . . . 2 . . . . . . . 1 2 . . . 3 Meltdown 7 | . . . . . 2 . . . . . . . 1 2 . . . 2 Impale 1 | . . . . . . . . . . . . . . . . . . 1 Melee Attacks 8 | . . . . . . . . . . . . . . . . . . 8 Impact . | . . . . . . . . . . . . . . . . . . . Slashing . | . . . . . . . . . . . . . . . . . . . Piercing 8 | . . . . . . . . . . . . . . . . . . 8 Sneak Attacks . | . . . . . . . . . . . . . . . . . . . Combat Hostiles . | . . . . . . . . . . . . . . . . . . . Follow-up Attacks . | . . . . . . . . . . . . . . . . . . . Damage Inflicted 33809 | 100 747 608 . 173 3299 1155 708 136 144 144 . 86 413 2525 1567 . 4895 17109 Guns 4733 | 53 625 169 . . 76 55 . . . . . . . . . . . 3755 Cannons 23223 | . 122 439 . 173 2324 1100 708 136 144 144 . 86 413 1228 1567 . 4845 9794 Explosions 5517 | 47 . . . . 899 . . . . . . . . 1297 . . 50 3224 Melee 333 | . . . . . . . . . . . . . . . . . . 333 Ramming 3 | . . . . . . . . . . . . . . . . . . 3 Kinetic 1236 | . 625 169 . . 395 . . . . . . . . . . . . 47 Thermal 26654 | 47 122 439 . 173 2005 1100 708 136 144 144 . 86 413 1228 1567 . 4845 13497 Explosive 5470 | . . . . . 899 . . . . . . . . 1297 . . 50 3224 Electromagnetic 113 | 53 . . . . . 55 . . . . . . . . . . . 5 Impact . | . . . . . . . . . . . . . . . . . . . Slashing . | . . . . . . . . . . . . . . . . . . . Piercing 333 | . . . . . . . . . . . . . . . . . . 333 Highest Corruption 56 | . 1 1 1 1 20 3 1 . . . . . . . 1 1 16 56 Average Corruption 7 | . 1 1 1 1 8 2 1 . . . . . . . 1 1 8 21 Corruption Purged 5 | . . . . . . 4 1 . . . . . . . . . . . Corruption Blocked . | . . . . . . . . . . . . . . . . . . . Effects 292 | . 5 8 3 7 59 26 1 . . . . . . . 2 . 60 121 Message Errors 66 | . 3 2 2 2 13 8 . . . . . . . . . . 13 23 Matter Fused 61 | . . 2 1 1 14 7 . . . . . . . . 1 . 13 22 Heat Flow Errors 41 | . 1 . . 1 14 5 . . . . . . . . . . 8 12 Energy Discharges 25 | . 1 . . 1 5 2 1 . . . . . . . . . 4 11 Parts Rejected 6 | . . . . . . . . . . . . . . . . . . 6 Parts Fused 4 | . . . . . 2 . . . . . . . . . . . 2 . Data Loss (minor) 26 | . . 1 . 2 4 2 . . . . . . . . 1 . 9 7 Data Loss (major) 12 | . . . . . 3 . . . . . . . . . . . 3 6 Misfires 8 | . . . . . 1 . . . . . . . . . . . 4 3 Alerts 9 | . . 3 . . 2 2 . . . . . . . . . . 2 . Misdirections 16 | . . . . . . . . . . . . . . . . . . 16 Weapon Failures 18 | . . . . . 1 . . . . . . . . . . . 2 15 Overload Shots 272 | . . . . . . . . . . . . 2 12 . 12 . 76 170 Effects 22 | . . . . . . . . . . . . . 1 . 2 . 6 13 Energy Bleed 7 | . . . . . . . . . . . . . . . . . 3 4 Heat Surge 11 | . . . . . . . . . . . . . 1 . 2 . 2 6 Short Circuit 4 | . . . . . . . . . . . . . . . . . 1 3 Overflow Damage 1033 | 11 . . . . 44 25 47 . 28 15 . 19 2 27 123 . 272 420 Projectiles 816 | . . . . . 25 25 47 . 28 15 . 19 2 . 123 . 272 260 Explosions 214 | 11 . . . . 19 . . . . . . . . 27 . . . 157 Melee 3 | . . . . . . . . . . . . . . . . . . 3 Knockbacks 4 | . . . . . 3 . . . . . . . . . . . . 1 Impact . | . . . . . . . . . . . . . . . . . . . Kinetic 3 | . . . . . 2 . . . . . . . . . . . . 1 Secondary 1 | . . . . . 1 . . . . . . . . . . . . . Self-Inflicted Damage 526 | . . . . . 111 30 . . . . . . . . . . . 385 Shots 10 | . . . . . 2 1 . . . . . . . . . . . 7 Rammed 1 | . . . . . . . . . . . . . . . . . . 1 Targets Rammed 2 | . . . . . . . . . . . . . . . . . . 2 Kicked 1 | . . . . . . . . . . . . . . . . . . 1 Crushed . | . . . . . . . . . . . . . . . . . . . Highest Temperature 685 | . 240 300 . 240 518 285 5 15 75 75 . 186 428 356 685 . 678 501 Average Temperature 133 | . 83 101 . 103 125 75 5 10 39 39 . 94 181 190 195 . 249 172 Received Heat Transfer 3233 | . 246 339 . . 981 90 42 . 9 . . . . 207 30 . 12 1277 Effects 37 | . . 2 . 2 11 . . . . . . . 4 2 4 . 4 8 Shutdowns 8 | . . . . . 4 . . . . . . . 1 . 2 . . 1 Energy Bleed 6 | . . 1 . . . . . . . . . . 1 1 1 . . 2 Interference 8 | . . 1 . 2 4 . . . . . . . . 1 . . . . Matter Decay 6 | . . . . . . . . . . . . . . . . . 2 4 Short Circuit 3 | . . . . . 1 . . . . . . . . . . . 1 1 Damage (minor) 3 | . . . . . 2 . . . . . . . . . . . 1 . Damage (major) 3 | . . . . . . . . . . . . . 2 . 1 . . . Siege Activations 19 | . . . . . . . . . . . . . 1 3 3 . 9 3 Total Turns 386 | . . . . . . . . . . . . . 1 62 69 . 156 98 Longest Duration 47 | . . . . . . . . . . . . . 1 44 29 . 28 47 Martial Activations . | . . . . . . . . . . . . . . . . . . . Shielding Activations 16 | . . . . . . . . . . . . . . . . . . 16 Total Turns 539 | . . . . . . . . . . . . . . . . . . 539 Longest Duration 95 | . . . . . . . . . . . . . . . . . . 95 Robots Disrupted . | . . . . . . . . . . . . . . . . . . . Combat Hostiles . | . . . . . . . . . . . . . . . . . . . Robots Corrupted . | . . . . . . . . . . . . . . . . . . . Combat Hostiles . | . . . . . . . . . . . . . . . . . . . Parts Fried 1 | . . . . . . . . . . . . . . . . . . 1 Impact Corruptions . | . . . . . . . . . . . . . . . . . . . Robots Melted 11 | . . . . . 4 . . . . . . . 1 2 . . 1 3 Combat Hostiles 8 | . . . . . 3 . . . . . . . 1 . . . 1 3 Parts Melted 108 | . 1 2 . . 11 6 6 . . . . 1 1 6 3 . 15 56 Heat Transferred 30770 | 50 259 925 . 400 3655 1406 888 185 198 211 . 100 472 1480 1830 . 4662 14049 Parts Sabotaged 4 | . . . . . . . . . . . . . . . . . . 4 Parts Stolen . | . . . . . . . . . . . . . . . . . . . Parts Stripped . | . . . . . . . . . . . . . . . . . . . Power Chain Reactions 2 | 1 . . . . . 1 . . . . . . . . . . . . Alert | -11 -10 -10 -10 -9 -8 -7 -6 -6 -6 -6 -6 -5 -5 -4 -4 -4 -3 -2 ------- Run | Yrd Mat Min Exi Min Mat Fac Fac Was Fac Low Low Fac DSF Fac Upp Upp Res Res Maximum Alert Level 5 | . . . . . 1 . . . 1 . . . 2 1 . . 2 5 Low Security (%) 76 | 100 100 100 . 100 68 100 100 100 96 . . 100 18 90 . . 60 20 Level 1 11 | . . . . . 31 . . . 3 . . . 72 9 . . 28 15 Level 2 5 | . . . . . . . . . . . . . 8 . . . 10 25 Level 3 . | . . . . . . . . . . . . . . . . . . 5 Level 4 3 | . . . . . . . . . . . . . . . . . . 23 Level 5 . | . . . . . . . . . . . . . . . . . . . High Security 1 | . . . . . . . . . . . . . . . . . . 10 Max Security . | . . . . . . . . . . . . . . . . . . . Sterilizations 1 | . . . . . . . . . . . . . 1 . . . . . Peak Influence 1820 | 5 92 55 . 29 285 102 57 23 209 . . 14 415 267 . . 487 1820 Initial 267 | . . . . . 3 102 22 18 . . . . 2 217 . . 4 267 Average 168 | 1 16 10 . 2 93 30 6 2 57 . . 2 273 84 . . 157 744 Influence Increases 6924 | 10 334 188 . 58 771 284 165 53 239 158 . 37 513 381 180 . 944 2609 Destroy 0b10 Robot/C 3540 | . 160 160 . 40 400 140 80 . 60 80 . . 260 160 160 . 480 1360 Destroy 0b10 Robot/NC 355 | 10 45 5 . . 55 25 10 . 10 . . 5 . 45 . . 30 115 Destroy Leader 762 | . 40 20 . . 88 76 42 . 30 10 . . 30 36 20 . 124 246 Allied During Kill 241 | . . . . . . . . . 75 68 . 3 95 . . . . . Successful Hack 205 | . 59 . . . . 5 26 . 14 . . 27 . . . . 74 . Disable Machine 195 | . 15 . . . 30 30 . . 30 . . . 15 . . . 45 30 Anti-Garrison Action 150 | . . . . . 150 . . . . . . . . . . . . . Destroy Structure 1056 | . . 3 . 3 33 8 7 53 20 . . 2 98 110 . . 176 543 Lose Combat Pursuer 420 | . 15 . . 15 15 . . . . . . . 15 30 . . 15 315 Influence Decreases 5104 | 10 334 188 . 47 555 464 159 106 218 179 . 34 101 543 411 15 476 1264 Entered New Map 711 | . . . . . 8 125 25 35 . 9 . . 1 198 94 5 3 208 Time Decay 3692 | 10 314 178 . 47 396 339 134 71 218 170 . 34 . 335 317 10 453 666 Lost Part 611 | . 20 10 . . 151 . . . . . . . 10 10 . . 20 390 Lost Ally 90 | . . . . . . . . . . . . . 90 . . . . . Squads Dispatched 68 | . . . . . 4 5 5 . 2 . . . 2 5 . . 10 35 Investigation 2 | . . . . . . . . . 1 . . . . . . . . 1 Extermination 22 | . . . . . . 4 3 . 1 . . . . 2 . . 5 7 Reinforcement 17 | . . . . . 2 1 1 . . . . . 2 3 . . 4 4 Assault 17 | . . . . . 2 . . . . . . . . . . . 1 14 Garrison 10 | . . . . . . . 1 . . . . . . . . . . 9 Intercept . | . . . . . . . . . . . . . . . . . . . Searches Triggered . | . . . . . . . . . . . . . . . . . . . Construction Impeded 4 | . . . . . . . . . . . . . . 1 . . 1 2 Haulers Reinforced 2 | . . . . . . . . . . . . . . 1 . . . 1 Active Scanning Responses . | . . . . . . . . . . . . . . . . . . . Cargo Convoy Interrupts 1 | . . . . . . . . . . . . . . . . . . 1 Stealth | -11 -10 -10 -10 -9 -8 -7 -6 -6 -6 -6 -6 -5 -5 -4 -4 -4 -3 -2 --------- Run | Yrd Mat Min Exi Min Mat Fac Fac Was Fac Low Low Fac DSF Fac Upp Upp Res Res Distress Signals 11 | . 2 . . 2 3 . . . . . . . . . . . 2 2 Communications Jammed . | . . . . . . . . . . . . . . . . . . . Distress Signals . | . . . . . . . . . . . . . . . . . . . Times Spotted 269 | . 23 8 . 4 33 9 5 4 1 4 1 . 9 19 8 . 30 111 Peak Tracking Total 10 | . 5 3 . 2 6 1 2 2 1 3 1 . 5 6 5 . 4 10 Tactical Retreats 18 | . 1 . . 2 1 . . . . 1 . . 1 2 . . 1 9 Traps | -11 -10 -10 -10 -9 -8 -7 -6 -6 -6 -6 -6 -5 -5 -4 -4 -4 -3 -2 ------- Run | Yrd Mat Min Exi Min Mat Fac Fac Was Fac Low Low Fac DSF Fac Upp Upp Res Res Traps Triggered 8 | . 2 . . . . 2 1 . . . . . 1 . . . . 2 Indirectly . | . . . . . . . . . . . . . . . . . . . Trap Hack Attempts . | . . . . . . . . . . . . . . . . . . . Triggered . | . . . . . . . . . . . . . . . . . . . Disarmed . | . . . . . . . . . . . . . . . . . . . Reprogrammed . | . . . . . . . . . . . . . . . . . . . Reused . | . . . . . . . . . . . . . . . . . . . Traps Extracted . | . . . . . . . . . . . . . . . . . . . Installed . | . . . . . . . . . . . . . . . . . . . Triggered . | . . . . . . . . . . . . . . . . . . . Machines | -11 -10 -10 -10 -9 -8 -7 -6 -6 -6 -6 -6 -5 -5 -4 -4 -4 -3 -2 ---------- Run | Yrd Mat Min Exi Min Mat Fac Fac Was Fac Low Low Fac DSF Fac Upp Upp Res Res Machines Disabled 14 | . 1 . . . 3 2 . . 2 . . . 1 . . . 3 2 Max in Single Turn 1 | . 1 . . . 1 1 . . . . . . . . . . 1 1 Garrison Access 1 | . . . . . 1 . . . . . . . . . . . . . Machines Repaired . | . . . . . . . . . . . . . . . . . . . Machines Dismantled . | . . . . . . . . . . . . . . . . . . . Machines Sabotaged . | . . . . . . . . . . . . . . . . . . . Overloaded Fab Kills . | . . . . . . . . . . . . . . . . . . . Hacking | -11 -10 -10 -10 -9 -8 -7 -6 -6 -6 -6 -6 -5 -5 -4 -4 -4 -3 -2 --------- Run | Yrd Mat Min Exi Min Mat Fac Fac Was Fac Low Low Fac DSF Fac Upp Upp Res Res Machines Accessed 40 | . 10 1 1 . 3 2 3 . 2 1 . 4 . 3 1 . 7 2 Terminals 24 | . 8 1 . . 2 1 2 . . . . 4 . 2 . . 3 1 Fabricators 4 | . . . . . . 1 . . 1 . . . . . . . 2 . Repair Stations 3 | . 1 . . . 1 . . . . . . . . . . . . 1 Recycling Units 3 | . 1 . . . . . . . 1 . . . . . . . 1 . Scanalyzers 3 | . . . . . . . 1 . . . . . . 1 . . 1 . Garrison Access . | . . . . . . . . . . . . . . . . . . . Total Hacks 87 | . 33 3 1 . 8 2 6 . 4 1 . 9 . 4 1 . 13 2 Successful 50 | . 23 1 1 . 3 2 4 . 2 1 . 3 . 1 1 . 8 . Failed 37 | . 10 2 . . 5 . 2 . 2 . . 6 . 3 . . 5 2 Catastrophic 6 | . 1 . . . . . 1 . . . . 1 . . . . 3 . Database Lockouts . | . . . . . . . . . . . . . . . . . . . Manual 27 | . 21 . 1 . 2 . . . . . . 3 . . . . . . Terminals 63 | . 30 3 . . 6 1 3 . . . . 9 . 2 . . 8 1 Fabricators 7 | . . . . . . 1 . . 3 . . . . . . . 3 . Repair Stations 5 | . 2 . . . 2 . . . . . . . . . . . . 1 Recycling Units 3 | . 1 . . . . . . . 1 . . . . . . . 1 . Scanalyzers 6 | . . . . . . . 3 . . . . . . 2 . . 1 . Garrison Access . | . . . . . . . . . . . . . . . . . . . Terminal Hacks 20 | . 6 1 1 . . 1 1 . . 1 . 3 . 1 1 . 4 . Record 1 | . . . . . . . . . . . . . . . 1 . . . Prototype ID Bank 1 | . . . . . . . 1 . . . . . . . . . . . Open Door 1 | . . . . . . . . . . 1 . . . . . . . . Open DSF 2 | . . . . . . . . . . . . 1 . 1 . . . . Fabricator Index 1 | . . . . . . . . . . . . 1 . . . . . . Scanalyzer Index 1 | . . . . . . . . . . . . . . . . . 1 . Alert Level 1 | . . . . . . . . . . . . . . . . . 1 . Dispatch Records 1 | . 1 . . . . . . . . . . . . . . . . . Registered Components 1 | . 1 . . . . . . . . . . . . . . . . . Registered Prototypes 2 | . 1 . . . . . . . . . . . . . . . 1 . Zone Layout 7 | . 3 1 . . . 1 . . . . . 1 . . . . 1 . Proto ID Catalog 1 | . . . 1 . . . . . . . . . . . . . . . Fabricator Hacks 5 | . . . . . . 1 . . 2 . . . . . . . 2 . Network Status 1 | . . . . . . 1 . . . . . . . . . . . . Load Schematic 2 | . . . . . . . . . 1 . . . . . . . 1 . Build 2 | . . . . . . . . . 1 . . . . . . . 1 . Repair Station Hacks 4 | . 2 . . . 2 . . . . . . . . . . . . . Scan Component 2 | . 1 . . . 1 . . . . . . . . . . . . . Repair 2 | . 1 . . . 1 . . . . . . . . . . . . . Recycling Unit Hacks 2 | . 1 . . . . . . . . . . . . . . . 1 . Report Inventory 1 | . 1 . . . . . . . . . . . . . . . . . Retrieve Components 1 | . . . . . . . . . . . . . . . . . 1 . Scanalyzer 4 | . . . . . . . 3 . . . . . . . . . 1 . Insert Component 1 | . . . . . . . 1 . . . . . . . . . . . Analyze 1 | . . . . . . . 1 . . . . . . . . . . . Retrieve Study 2 | . . . . . . . 1 . . . . . . . . . 1 . Garrison Access Hacks . | . . . . . . . . . . . . . . . . . . . Unauthorized Hacks 13 | . 12 . . . 1 . . . . . . . . . . . . . Terminals 13 | . 12 . . . 1 . . . . . . . . . . . . . Track 1 | . 1 . . . . . . . . . . . . . . . . . Botnet 3 | . 3 . . . . . . . . . . . . . . . . . Operators 1 | . 1 . . . . . . . . . . . . . . . . . Skim 8 | . 7 . . . 1 . . . . . . . . . . . . . Fabricators . | . . . . . . . . . . . . . . . . . . . Repair Stations . | . . . . . . . . . . . . . . . . . . . Recycling Units . | . . . . . . . . . . . . . . . . . . . Scanalyzers . | . . . . . . . . . . . . . . . . . . . Garrison Access . | . . . . . . . . . . . . . . . . . . . Data Cores Recovered 3 | . . . . . . . . . . . . 1 . . . . 1 1 Used . | . . . . . . . . . . . . . . . . . . . Hacking Detections 30 | . 7 1 . . 3 2 3 . 2 . . 3 . 2 . . 5 2 Full Trace Events 1 | . . . . . . . . . 1 . . . . . . . . . Feedback Events . | . . . . . . . . . . . . . . . . . . . Feedback Blocked . | . . . . . . . . . . . . . . . . . . . Robot Schematics Acquired . | . . . . . . . . . . . . . . . . . . . Robots Built . | . . . . . . . . . . . . . . . . . . . Authchips . | . . . . . . . . . . . . . . . . . . . Time . | . . . . . . . . . . . . . . . . . . . Total Robot Build Rating . | . . . . . . . . . . . . . . . . . . . Part Schematics Acquired 1 | . . . . . . . 1 . . . . . . . . . . . Parts Built 2 | . . . . . . . . . 1 . . . . . . . 1 . Authchips 1 | . . . . . . . . . . . . . . . . . 1 . Time 134 | . . . . . . . . . 67 . . . . . . . 67 . Total Part Build Rating 8 | . . . . . . . . . 4 . . . . . . . 4 . Part Studies Acquired 2 | . . . . . . . 1 . . . . . . . . . 1 . Parts Repaired 2 | . 1 . . . 1 . . . . . . . . . . . . . Time 52 | . 26 . . . 26 . . . . . . . . . . . . . Parts Recycled . | . . . . . . . . . . . . . . . . . . . Recycled Matter . | . . . . . . . . . . . . . . . . . . . Retrieved Matter . | . . . . . . . . . . . . . . . . . . . Retrieved Components 10 | . . . . . . . . . . . . . . . . . 10 . Parts Scanalyzed 1 | . . . . . . . 1 . . . . . . . . . . . Part Schematics Acquired 1 | . . . . . . . 1 . . . . . . . . . . . Parts Damaged 1 | . . . . . . . 1 . . . . . . . . . . . Bothacking | -11 -10 -10 -10 -9 -8 -7 -6 -6 -6 -6 -6 -5 -5 -4 -4 -4 -3 -2 ------------ Run | Yrd Mat Min Exi Min Mat Fac Fac Was Fac Low Low Fac DSF Fac Upp Upp Res Res Used RIF Installer . | . . . . . . . . . . . . . . . . . . . Robots Hacked . | . . . . . . . . . . . . . . . . . . . Non-combat . | . . . . . . . . . . . . . . . . . . . Combat . | . . . . . . . . . . . . . . . . . . . Robot Hacks Applied . | . . . . . . . . . . . . . . . . . . . Relay Couplers Released 1 | . . . . . 1 . . . . . . . . . . . . . Machine Destruction 1 | . . . . . 1 . . . . . . . . . . . . . Fabnet Peak Effective % . | . . . . . . . . . . . . . . . . . . . Robots Rewired . | . . . . . . . . . . . . . . . . . . . Allies Hacked . | . . . . . . . . . . . . . . . . . . . Hacks Repelled . | . . . . . . . . . . . . . . . . . . . Allies | -11 -10 -10 -10 -9 -8 -7 -6 -6 -6 -6 -6 -5 -5 -4 -4 -4 -3 -2 -------- Run | Yrd Mat Min Exi Min Mat Fac Fac Was Fac Low Low Fac DSF Fac Upp Upp Res Res Total Allies 21 | . . . . 3 . . . 18 . . . . . . . . . . Largest Group 18 | . . . . 3 . . . 18 8 8 8 7 6 . . . . . Highest-Rated Group 638 | . . . . 40 . . . 638 338 338 338 311 265 . . . . . Highest-Rated Ally 50 | . . . . 16 . . . 50 50 50 50 50 50 . . . . . Initial Warlord ECA Mod 9 | . . . . . . . . . . . . . . 9 9 9 8 7 Warlord Squad Rendezvous 1 | . . . . . . . . . . . . . . . . . . 1 Ghost 1 | . . . . . . . . . . . . . . . . . . 1 Total Orders 2 | . . . . 2 . . . . . . . . . . . . . . GUARD 2 | . . . . 2 . . . . . . . . . . . . . . Ally Attacks 177 | . . . . 6 . . . 97 17 10 11 . 36 . . . . . Total Damage 7936 | . . . . 55 . . . 5288 452 525 286 . 1330 . . . . . Kills 29 | . . . . 1 . . . 13 3 3 1 . 8 . . . . . Allies Corrupted . | . . . . . . . . . . . . . . . . . . . Allies Melted . | . . . . . . . . . . . . . . . . . . . Intel | -11 -10 -10 -10 -9 -8 -7 -6 -6 -6 -6 -6 -5 -5 -4 -4 -4 -3 -2 ------- Run | Yrd Mat Min Exi Min Mat Fac Fac Was Fac Low Low Fac DSF Fac Upp Upp Res Res Active Infowar (turns) 8947 | 22 1440 890 349 954 1843 . . . . . . . . . 1142 32 983 1292 Sensors 1274 | . . . . . . . . . . . . . . . 1142 32 100 . Terrain 4451 | . . . . . 1005 . . . . . . . . . 1141 32 981 1292 Seismic 129 | 22 107 . . . . . . . . . . . . . . . . . Machine Analysis 5369 | . 1333 890 349 954 1843 . . . . . . . . . . . . . Robot Analysis Total . | . . . . . . . . . . . . . . . . . . . Derelict Logs Recovered 5 | . . 2 . . . . . . . 1 1 . . . 1 . . . Drone Launches . | . . . . . . . . . . . . . . . . . . . Drone Recoveries . | . . . . . . . . . . . . . . . . . . . Exploration | -11 -10 -10 -10 -9 -8 -7 -6 -6 -6 -6 -6 -5 -5 -4 -4 -4 -3 -2 ------------- Run | Yrd Mat Min Exi Min Mat Fac Fac Was Fac Low Low Fac DSF Fac Upp Upp Res Res Turns Passed 20604 | 94 1551 890 349 991 2514 2384 1403 643 1097 751 375 173 172 820 1143 32 2376 2846 Spaces Moved 8620 | 45 749 442 218 459 794 795 572 298 386 305 155 92 74 430 628 16 871 1291 Core 322 | 4 . . . . 7 . . . . . . . . . . . . 311 Treads 7352 | 41 749 442 218 459 787 795 572 298 386 305 155 92 74 430 628 16 871 34 Legs 907 | . . . . . . . . . . . . . . . . . . 907 Wheels . | . . . . . . . . . . . . . . . . . . . Hover 39 | . . . . . . . . . . . . . . . . . . 39 Flight . | . . . . . . . . . . . . . . . . . . . Fastest Speed 50 | 50 160 160 160 160 160 240 200 160 220 240 240 160 160 160 160 160 156 50 Average Speed 180 | 150 160 160 160 160 233 246 203 206 226 240 240 164 160 160 160 160 167 117 Slowest Speed 1000 | 160 160 160 160 160 1000 480 240 220 240 240 240 240 160 160 160 160 240 800 Overloaded Moves . | . . . . . . . . . . . . . . . . . . . Propulsion Burnouts . | . . . . . . . . . . . . . . . . . . . Robots Hopped . | . . . . . . . . . . . . . . . . . . . Potential Cave-ins 2 | . . . . . . . . . . . . . . 2 . . . . Cave-ins Triggered 1 | . . . . . . . . . . . . . . 1 . . . . Exploration Rate (%) 42 | 4 92 84 60 73 47 19 16 97 11 46 21 5 73 9 79 7 26 32 Regions Visited 18 Branch Regions 7 Pre-discovered Areas 4 | . 2 1 . . . . . . . . . . . . 1 . . . Known Exits Taken 4 | . . . . . . . . . . 1 . 1 . 1 . 1 . . Unknown Exits Taken 11 | 1 1 1 1 1 1 1 . . 1 . 1 . . . 1 . 1 . Scrap Searched 8 | . . 1 . 2 . . . . . 1 1 . . . 2 1 . . Spaces Dug 34 | . . . . . . 1 . . . . . . . 1 . . 15 17 Terrain Destroyed 447 | 7 . 3 . 3 29 6 4 . . . . 1 6 77 14 . 108 189 Melee 1 | . . . . . . . . . . . . . . . . . . 1 Projectile 210 | . . 3 . 3 15 3 4 . . . . 1 6 12 14 . 68 81 AOE 236 | 7 . . . . 14 3 . . . . . . . 65 . . 40 107 Terrain Rammed . | . . . . . . . . . . . . . . . . . . . Walls Destroyed . | . . . . . . . . . . . . . . . . . . . Machines Disabled . | . . . . . . . . . . . . . . . . . . . Actions | -11 -10 -10 -10 -9 -8 -7 -6 -6 -6 -6 -6 -5 -5 -4 -4 -4 -3 -2 --------- Run | Yrd Mat Min Exi Min Mat Fac Fac Was Fac Low Low Fac DSF Fac Upp Upp Res Res Total 12560 | 61 1006 541 219 709 1296 1182 785 330 604 321 159 112 109 507 710 23 1655 2231 Wait 2681 | . 148 40 . 231 289 278 158 5 202 13 5 15 8 24 38 8 642 577 Move 8603 | 44 748 441 217 458 793 794 572 297 385 304 154 92 73 428 627 15 870 1291 Hop . | . . . . . . . . . . . . . . . . . . . Pick Up 146 | 3 15 3 . 3 33 23 12 4 4 1 . 1 4 10 4 . 14 12 Fast Attach 109 | 7 3 . . . 20 8 2 2 1 . . . 4 2 . . 12 48 Attach 72 | . 1 2 . . 16 2 4 3 . . . 2 1 1 5 . 10 25 Detach 35 | . . . . . 2 3 3 7 . . . . . 1 2 . 8 9 Swap 145 | . 7 9 1 4 26 19 7 . 3 . . . 3 8 5 . 15 38 Drop 170 | . 8 4 1 5 25 31 13 10 6 1 . 1 6 5 3 . 20 31 Fire 583 | 7 76 42 . 8 92 20 14 2 3 2 . 1 10 27 25 . 64 190 Melee 8 | . . . . . . . . . . . . . . . . . . 8 Ram 1 | . . . . . . . . . . . . . . . . . . 1 Kick 1 | . . . . . . . . . . . . . . . . . . 1 Crush . | . . . . . . . . . . . . . . . . . . . Escape Stasis 5 | . . . . . . 4 . . . . . . . 1 . . . . Rewire 1 | . . . . . . . . . . . . . . . 1 . . . Trap . | . . . . . . . . . . . . . . . . . . . Miscellaneous . | . . . . . . . . . . . . . . . . . . . Route ------- -11/Scrapyard -10/Materials (discovered 5 exits: *Mat x3 / *Min / [*Sub]) -10/Mines (discovered 4 exits: *Mat x2 / *Exi / [*Sub]) -10/Exiles -9/Mines -8/Materials -7/Factory -6/Factory -6/Waste -6/Factory -6/Lower Caves -6/Lower Caves -5/Factory -5/DSF -4/Factory (discovered 2 exits: *Res / *Upp) -4/Upper Caves -4/Upper Caves -3/Research (discovered 2 exits: *Res / *Tes) -2/Research History --------- Turn | Location | Event 16 | -11/Scrapyard | Discovered new exit (range 16) 95 | -11/Scrapyard | Entered Materials 305 | -10/Materials | Build established: Mutant 573 | -10/Materials | Discovered new exit (range 13) 1043 | -10/Materials | Discovered new exit (range 11) 1115 | -10/Materials | Repaired Lgt. Treads 1393 | -10/Materials | Discovered new exit (range 18) 1447 | -10/Materials | Learned Storage stockpile data 1491 | -10/Materials | Learned location of 2 exits from Subcaves 1523 | -10/Materials | Learned location of 2 exits from Subcaves 1535 | -10/Materials | Discovered new exit (range 14) 1536 | -10/Materials | Discovered new exit (range 6) 1544 | -10/Materials | Learned Storage terminal intel 1555 | -10/Materials | Learned location of Storage (-9) 1604 | -10/Materials | Learned location of Mines (-9) 1646 | -10/Materials | Entered Mines 1676 | -10/Mines | Excavation squad dispatched 1676 | -10/Mines | A large section of the Mines collapsed 1811 | -10/Mines | Discovered new exit (range 9) 1866 | -10/Mines | Discovered new exit (range 6) 1968 | -10/Mines | Received a Rocket Launcher from a helpful Derelict 2074 | -10/Mines | Core integrity fell below 50% 2187 | -10/Mines | Identified exit to Materials 2309 | -10/Mines | Core integrity fell below 20% 2362 | -10/Mines | Learned location of Zion (-7) 2396 | -10/Mines | Build established: Scavenger-Mutant 2530 | -10/Mines | Deemed a non-threat by the Exiles lab entrance 2530 | -10/Mines | Discovered new exit (range 5) 2536 | -10/Mines | Entered Exiles 2573 | -10/Exiles | Met 8R-AWN 2604 | -10/Exiles | Met EX-HEX 2647 | -10/Exiles | Met EX-BIN 2666 | -10/Exiles | Aligned with FarCom system 2668 | -10/Exiles | Given EX-Vault access code 2704 | -10/Exiles | Opened EX-Vault 2714 | -10/Exiles | Found Gui. Plasma Cannon 2748 | -10/Exiles | Warned to stay clear of 0b10 Research branches 2794 | -10/Exiles | Met EX-DEC 2868 | -10/Exiles | Discovered new exit (range 14) 2885 | -10/Exiles | Left Exiles lab with Gui. Plasma Cannon 2885 | -10/Exiles | Entered Mines 2889 | -9/Mines | Assisted by bots powering up and referring to "LRC-V3" 2978 | -9/Mines | Assembled infested the area 3046 | -9/Mines | Found a damaged Exp. Sensor Array with a note attached 3050 | -9/Mines | Found Prototype Device 3222 | -9/Mines | Build established: Mutant 3848 | -9/Mines | Discovered new exit (range 10) 3876 | -9/Mines | Entered Materials 3876 | -8/Materials | Evolved 4 slots: Power x1, Propulsion x1, Utility x2 4995 | -8/Materials | Repaired Lgt. Treads 5130 | -8/Materials | Build established: Scavenger-Mutant 5558 | -8/Materials | Build established: Scavenger-Skirmisher 5779 | -8/Materials | System corruption reached 10% 5790 | -8/Materials | Core integrity fell below 50% 5831 | -8/Materials | Lost 12 parts (2p2n5u3w) 6218 | -8/Materials | Build established: Scavenger-Mutant 6342 | -8/Materials | Discovered new exit (range 13) 6390 | -8/Materials | Entered Factory 6390 | -7/Factory | Evolved 2 slots: Utility x1, Weapon x1 6783 | -7/Factory | Build established: Scavenger-Tank 7221 | -7/Factory | Identified Exp. Sensor Array 8206 | -7/Factory | Discovered new exit (range 13) 8229 | -7/Factory | Build established: Scavenger-Skirmisher 8694 | -7/Factory | Build established: Tank 8774 | -7/Factory | Entered another Factory area 8774 | -6/Factory | Evolved 2 slots: Utility x2 9572 | -6/Factory | Build established: Gunner 10136 | -6/Factory | Garrison activated, responded to threat 10177 | -6/Factory | Spotted B-75 Beast 10177 | -6/Factory | Sucked down chute 10177 | -6/Factory | Entered Waste 10208 | -6/Waste | Spotted C-40 Crusher 10265 | -6/Waste | Warlord forces began an assault 10278 | -6/Waste | Allies destroyed C-40 Crusher 10308 | -6/Waste | Lost 7 allies 10331 | -6/Waste | Spotted C-40 Crusher 10337 | -6/Waste | Allies destroyed C-40 Crusher 10342 | -6/Waste | Spotted C-40 Crusher 10348 | -6/Waste | Allies destroyed C-40 Crusher 10368 | -6/Waste | Lost 3 allies 10374 | -6/Waste | Found Damper Plating 10377 | -6/Waste | Spotted C-40 Crusher 10378 | -6/Waste | Allies destroyed C-40 Crusher 10414 | -6/Waste | Spotted C-40 Crusher 10417 | -6/Waste | Spotted C-40 Crusher 10418 | -6/Waste | Allies destroyed C-40 Crusher 10421 | -6/Waste | Destroyed C-40 Crusher 10533 | -6/Waste | Found Heavy Servo Lattice 10661 | -6/Waste | Discovered new exit (range 13) 10667 | -6/Waste | Build established: Tank 10820 | -6/Waste | Entered Factory 10820 | -6/Factory | Accompanied by 8 allies 11736 | -6/Factory | Discovered new exit (range 15) 11877 | -6/Factory | Fabricated Cld. Particle Cannon (x1) 11917 | -6/Factory | Entered Lower Caves 11917 | -6/Lower Caves | Accompanied by 8 allies 12578 | -6/Lower Caves | Identified exit to Lower Caves 12668 | -6/Lower Caves | Entered another Lower Caves area 12668 | -6/Lower Caves | Accompanied by 8 allies 12728 | -6/Lower Caves | Learned Factory terminal intel 13014 | -6/Lower Caves | Discovered new exit (range 11) 13043 | -6/Lower Caves | Entered Factory 13043 | -5/Factory | Accompanied by 7 allies 13043 | -5/Factory | Evolved 2 slots: Propulsion x1, Utility x1 13044 | -5/Factory | Loaded intel: 26 terminal locations 13202 | -5/Factory | Identified exit to DSF 13216 | -5/Factory | Entered DSF 13216 | -5/DSF | Accompanied by 7 allies 13248 | -5/DSF | Additional patrols routed to DSF 13328 | -5/DSF | Sterilization system engaged 13340 | -5/DSF | Discovered new exit (range 16) 13348 | -5/DSF | Ambient heat levels rising (+10) 13363 | -5/DSF | Ambient heat levels rising (+10) 13378 | -5/DSF | Ambient heat levels rising (+10) 13386 | -5/DSF | Lost 3 allies 13388 | -5/DSF | Entered Factory 13388 | -4/Factory | Evolved 2 slots: Propulsion x2 13655 | -4/Factory | Discovered new exit (range 15) 13837 | -4/Factory | Discovered new exit (range 16) 13936 | -4/Factory | Identified exit to Upper Caves 13981 | -4/Factory | Identified exit to Research 14193 | -4/Factory | Crushed by falling debris 14201 | -4/Factory | Found Launcher Loader 14208 | -4/Factory | Entered Upper Caves 14225 | -4/Upper Caves | Met a Warlord Commander 14226 | -4/Upper Caves | Learned location of Warlord (-4) 14227 | -4/Upper Caves | Warlord Commander delivered Encrypted Comm Array 14251 | -4/Upper Caves | Found Encrypted Comm Array 14976 | -4/Upper Caves | Entered a destroyed Warlord outpost 15009 | -4/Upper Caves | Learned Research stockpile data 15106 | -4/Upper Caves | Attracted the attention of an 0b10 checkpoint 15337 | -4/Upper Caves | Discovered new exit (range 9) 15351 | -4/Upper Caves | Entered another Upper Caves area 15353 | -4/Upper Caves | Discovered exit to Research (range 13) 15383 | -4/Upper Caves | Entered Research 15383 | -3/Research | Evolved 2 slots: Utility x1, Weapon x1 16209 | -3/Research | Fabricated Cld. Particle Cannon (x1) 16497 | -3/Research | System corruption reached 10% 16636 | -3/Research | Specialist reinforcements revealed to be Infiltrators 16656 | -3/Research | Discovered new exit (range 15) 16675 | -3/Research | Identified exit to Testing 17633 | -3/Research | First assault squad dispatched 17734 | -3/Research | Discovered new exit (range 16) 17759 | -3/Research | Entered another Research area 17759 | -2/Research | Evolved 2 slots: Power x1, Utility x1 17980 | -2/Research | Spotted B-90 Cyclops 18455 | -2/Research | Build established: Skirmisher 18525 | -2/Research | Cargo convoy interrupted 18528 | -2/Research | Garrison activated, responded to threat 18795 | -2/Research | Joined by Warlord Ghost squad 19288 | -2/Research | Destroyed 7 combat bots 19488 | -2/Research | Build established: Gunner 19516 | -2/Research | Garrison activated, responded to threat 19573 | -2/Research | System corruption reached 10% 19610 | -2/Research | Destroyed 8 combat bots 19759 | -2/Research | First assault squad dispatched 19829 | -2/Research | Garrison activated, responded to threat 19863 | -2/Research | System corruption reached 30% 19897 | -2/Research | Lost 19 parts (3p3n9u4w) 20077 | -2/Research | Core integrity fell below 50% 20113 | -2/Research | Lost 3 parts (1n1u1w) 20304 | -2/Research | Found Prototype Launcher 20304 | -2/Research | Identified Gui. Micro-nuke Launcher 20315 | -2/Research | High security lockdown imminent 20369 | -2/Research | Lost 9 parts (2p3n2u2w) 20395 | -2/Research | High security lockdown engaged 20406 | -2/Research | Released all parts (4) 20433 | -2/Research | Lost 4 parts (1p2n1w) 20516 | -2/Research | Spotted B-90 Cyclops 20519 | -2/Research | Core integrity fell below 20% 20605 | -2/Research | Destroyed by P-80 Master with Gamma Rifle Last Messages --------------- 20528_ Acquired Adv. Heavy Siege Treads. [Achievement: Physics Hates This One Trick] 20530_ Acquired Enh. Hardcell Cannon. 20538_ System corrupted: Substantial component data lost. 20547_ P-80 Master resets P-80 Master, system corruption cleaned. 20553_ QK2AEE1WVVRKTY>TA%O4C9:ILD 20569_ System corrupted: Heat flow error (+283). 20569_ C-45 Heavy ARC bursts open, deploying its payload. 20569_ G-73 Enforcer unfolds itself. 20585_ System corrupted: Matter fused (-9). 20604_ Slammed into P-80 Master. 20605_ C-45 Heavy ARC bursts open, deploying its payload. 20605_ H-88 Terminator unfolds itself. 20605_ P-80 Master unfolds itself. 20605_ H-88 Terminator unfolds itself. 20605_ I-47 Archangel unfolds itself. Map ----- +----------------------------------------------------+ | ? ? ?????? ??????????# # #????? | | #####?+?#??#?????## ?????????# # #????? | | #? ? ???? ?????# """"" ????????# ?# #????? | | # ???????????????# """"" ?????????######+###??? | | ? ? ??????????????? "??????????????# #??? | | ?? ???????????????? ??????????????# #??? | | ??????????????????? ???????????????# """ #??? | | ? ???????????????????????????????????# """ #??? | | ?????????????????????????????????????# """ #??? | | ? "?????????????????????????????????# """ #??? | | ????????????????????????????????###### """ #??? | | # ???????????????????????? ???# + """ #??? | | #????????????????????????? #?# # """ #??? | | #????????????????????????# #?# + "#?? | | ?????????????????????????# #?# # #??? | | ?????????????????????????# #?# # #??? | | ?????????????????????????# #?# # #??? | | ?????????????????????????# #?# l# #??? | | ???????????????########### #?# # #??? | | ???????????????# # #?# # #??? | | ???????????????# # #?# # #??? | | ???????????????# # #?# # #??? | | ???????????????# # #?# ##########??? | | ???????????????# !! # #?# ############? | | ???????????????# !! p# ###C # ?? | | ???????????????# !! w@p h h # ??? | | ???????????????# # i # """ ??? | | ???????????????########;## + """ ?? | | ??????????????????????#### # """ "?? | | ?????????????????????????######## # ""? | | ????????????????????????????????# # ""? | | ????????????????????????????????# ############? | | ????????????????????????????????# ??????????? | | ????????????????????????????????# ????????? | | ????????????????????????????????# ???????? | | ???????????????????????????????? ??????? | | ???????????????????????????????##########+##?????? | | ?????????????????????????????????????????????????? | | ?????????????????????????????????????????????????? | | ?????????????????????????????????????????????????? | | ?????????????????????????????????????????????????? | | ?????????????????????????????????????????????????? | | ?????????????????????????????????????????????????? | | ?????????????????????????????????????????????????? | | ?????????????????????????????????????????????????? | | ?????????????????????????????????????????????????? | | ?????????????????????????????????????????????????? | | ?????????????????????????????????????????????????? | | ?????????????????????????????????????????????????? | | ?????????????????????????????????????????????????? | +----------------------------------------------------+ Best States ------------- Heat Dissipation 125 Coolant Potential 65 Energy Generation 77 Energy Capacity 1130 Matter Stores 300 Matter Capacity 300 Sight Range 16 Robot Scan Range 20 Terrain Scan Range 20 Terrain Scan Density 210 Power Amplification 20 Base Temperature (-) 200 Armor Coverage 3200 Resistance: TH 30 Resistance: EM 90 Core Shielding 30 Propulsion Shielding 66 Weapon Cycling 25 Evasion (%) 63 Targeting Accuracy 8 Core Analysis 6 Recoil Reduction 6 Offensive Hacking 12 Authchip Count 2 Item Schematics ----------------- Cld. Particle Cannon | -6/Factory | Scanalyzed Robot Schematics ------------------ None Fabricated ------------ Cld. Particle Cannon | x1 | -6/Factory Cld. Particle Cannon | x1 | -3/Research | Authchip Repaired ---------- Lgt. Treads | 3% | -10/Materials Lgt. Treads | 1% | -8/Materials Studied --------- Med. Treads | -6/Factory | Hacked Imp. Heavy Treads | -3/Research | Hacked Alien Tech Used ----------------- None Achievements -------------- Can't Touch This Ew, Corruption Hot Goods I Like You, Cogmind Physics Hates This One Trick Physics Protects Tank Tank Life Turtlemind Challenges ------------ None Game ------ Seed SpreadUltimateMegatreads Manual? 0 Play Time 03:31:52 Cumulative 68.8 hours Start 2026.04.25 @ 22:46:03 End 2026.04.26 @ 23:24:20 Sessions 11 Manual Loads 0 Difficulty Rogue Special Mode None Game No. 69 Rogue 69 Adventurer 0 Explorer 0 Win Type - Total 1 Types 1/0/0/0/0/0/0/0/0/0 Lore% 25 Gallery% 43 Achievement% 38 Wizard Run 0 Options --------- Layout 1 ASCII 0 Keyboard 0 Movement Mouse Keybinds 0 Fullscreen 1 Font 24/Smallcaps Map View 50x35 Zoom Use 0% Tactical HUD 1 Map Filters NONE Filters NONE Steam 1 RUN: 455921cc-fa1e-45a6-8da7-3d7fe7756b26